[Event "Titled Tuesday Blitz December 13 Early 2022"]
[White "Araujo Sanchez, Josue"]
[Black "Kamsky, Gata"]
[WhiteFideId "6416896"]
[BlackFideId "2000024"]
[WhiteElo "2370"]
[BlackElo "2666"]
[Result "1-0"]
[Round "07"]
[TimeControl "180+1"]
[Date "2022.12.13"]
[WhiteClock "0:00:04"]
[BlackClock "0:00:04"]

1. c4 {[%clk 0:03:00]}  f5 {[%clk 0:02:58]} 2. Nc3 {[%clk 0:03:00]}  Nf6 {[%clk 0:02:58]} 3. g3 {[%clk 0:03:00]}  g6 {[%clk 0:02:56]} 4. Bg2 {[%clk 0:03:00]}  Bg7 {[%clk 0:02:56]} 5. d4 {[%clk 0:03:00]}  d6 {[%clk 0:02:56]} 6. h4 {[%clk 0:03:00]}  Nc6 {[%clk 0:02:54]} 7. d5 {[%clk 0:02:55]}  Ne5 {[%clk 0:02:54]} 8. Nh3 {[%clk 0:02:55]}  c5 {[%clk 0:02:53]} 9. b3 {[%clk 0:02:47]}  h6 {[%clk 0:02:38]} 10. Bb2 {[%clk 0:02:43]}  a6 {[%clk 0:02:29]} 11. O-O {[%clk 0:02:41]}  O-O {[%clk 0:02:28]} 12. Nf4 {[%clk 0:02:40]}  Rb8 {[%clk 0:02:27]} 13. a4 {[%clk 0:02:35]}  Qe8 {[%clk 0:02:25]} 14. Nh3 {[%clk 0:02:03]}  Nh5 {[%clk 0:02:10]} 15. e3 {[%clk 0:02:01]}  Ng4 {[%clk 0:02:08]} 16. Qc2 {[%clk 0:01:57]}  Qf7 {[%clk 0:02:02]} 17. Rae1 {[%clk 0:01:50]}  Bd7 {[%clk 0:01:56]} 18. Nf4 {[%clk 0:01:43]}  g5 {[%clk 0:01:52]} 19. hxg5 {[%clk 0:01:40]}  hxg5 {[%clk 0:01:52]} 20. Ne6 {[%clk 0:01:39]}  Bxe6 {[%clk 0:01:41]} 21. dxe6 {[%clk 0:01:38]}  Qg6 {[%clk 0:01:41]} 22. Nd5 {[%clk 0:01:38]}  Rbe8 {[%clk 0:01:27]} 23. f3 {[%clk 0:01:36]}  Ne5 {[%clk 0:01:06]} 24. f4 {[%clk 0:00:56]}  Ng4 {[%clk 0:01:00]} 25. Rf3 {[%clk 0:00:49]}  Bxb2 {[%clk 0:00:57]} 26. Qxb2 {[%clk 0:00:50]}  Nhf6 {[%clk 0:00:55]} 27. fxg5 {[%clk 0:00:25]}  Nxd5 {[%clk 0:00:53]} 28. cxd5 {[%clk 0:00:24]}  Qxg5 {[%clk 0:00:49]} 29. Rf4 {[%clk 0:00:24]}  Rf6 {[%clk 0:00:38]} 30. Bf3 {[%clk 0:00:24]}  Ne5 {[%clk 0:00:38]} 31. Kg2 {[%clk 0:00:06]}  Nd3 {[%clk 0:00:35]} 32. Qb1 {[%clk 0:00:06]}  Nxe1+ {[%clk 0:00:34]} 33. Qxe1 {[%clk 0:00:06]}  Rh6 {[%clk 0:00:32]} 34. e4 {[%clk 0:00:06]}  Kh8 {[%clk 0:00:28]} 35. Rxf5 {[%clk 0:00:05]}  Qg7 {[%clk 0:00:22]} 36. e5 {[%clk 0:00:05]}  Qh7 {[%clk 0:00:19]} 37. Be4 {[%clk 0:00:03]}  Rh2+ {[%clk 0:00:18]} 38. Kf3 {[%clk 0:00:04]}  Qh3 {[%clk 0:00:17]} 39. Rf4 {[%clk 0:00:03]}  Qh5+ {[%clk 0:00:14]} 40. Ke3 {[%clk 0:00:03]}  Qg5 {[%clk 0:00:14]} 41. Kd3 {[%clk 0:00:02]}  dxe5 {[%clk 0:00:13]} 42. Rf5 {[%clk 0:00:01]}  Qg4 {[%clk 0:00:11]} 43. Qe3 {[%clk 0:00:02]}  Qd1+ {[%clk 0:00:10]} 44. Kc3 {[%clk 0:00:02]}  Qa1+ {[%clk 0:00:10]} 45. Kc4 {[%clk 0:00:02]}  Qd4+ {[%clk 0:00:10]} 46. Qxd4 {[%clk 0:00:02]}  cxd4 {[%clk 0:00:10]} 47. Rxe5 {[%clk 0:00:03]}  Rc8+ {[%clk 0:00:10]} 48. Kxd4 {[%clk 0:00:03]}  Kg7 {[%clk 0:00:10]} 49. Rg5+ {[%clk 0:00:03]}  Kh6 {[%clk 0:00:10]} 50. Rg6+ {[%clk 0:00:03]}  Kh5 {[%clk 0:00:10]} 51. g4+ {[%clk 0:00:04]}  Kh4 {[%clk 0:00:10]} 52. Rg7 {[%clk 0:00:04]}  Kg3 {[%clk 0:00:07]} 53. Rxe7 {[%clk 0:00:04]}  Kxg4 {[%clk 0:00:04]} 54. Rg7+ {[%clk 0:00:04]}  Kf4 {[%clk 0:00:04]} 55. Rf7+ {[%clk 0:00:04]}  Kg5 {[%clk 0:00:04]} 56. e7 {[%clk 0:00:04]} 1-0


[Site "https://www.chess.com"]

[Event "Titled Tuesday Blitz December 13 Early 2022"]
[White "Arbunic Castro, Giovanna"]
[Black "Thiel, Thomas"]
[WhiteFideId "3400549"]
[BlackFideId "4615964"]
[WhiteElo "1931"]
[BlackElo "2206"]
[Result "0-1"]
[Round "07"]
[TimeControl "180+1"]
[Date "2022.12.14"]
[WhiteClock "0:01:17"]
[BlackClock "0:01:46"]

1. e4 {[%clk 0:02:57]}  d5 {[%clk 0:02:59]} 2. exd5 {[%clk 0:02:56]}  Nf6 {[%clk 0:02:59]} 3. d4 {[%clk 0:02:54]}  Nxd5 {[%clk 0:02:58]} 4. c4 {[%clk 0:02:53]}  Nb6 {[%clk 0:02:57]} 5. Nf3 {[%clk 0:02:52]}  g6 {[%clk 0:02:56]} 6. Be3 {[%clk 0:02:50]}  Bg7 {[%clk 0:02:55]} 7. Nc3 {[%clk 0:02:50]}  O-O {[%clk 0:02:53]} 8. Be2 {[%clk 0:02:49]}  Bg4 {[%clk 0:02:50]} 9. O-O {[%clk 0:02:48]}  Nc6 {[%clk 0:02:46]} 10. d5 {[%clk 0:02:29]}  Bxf3 {[%clk 0:02:44]} 11. Bxf3 {[%clk 0:02:28]}  Ne5 {[%clk 0:02:43]} 12. Bxb6 {[%clk 0:02:24]}  Nxf3+ {[%clk 0:02:40]} 13. Qxf3 {[%clk 0:02:22]}  axb6 {[%clk 0:02:39]} 14. Rad1 {[%clk 0:02:14]}  Qd7 {[%clk 0:02:24]} 15. Rfe1 {[%clk 0:02:12]}  Rfe8 {[%clk 0:02:22]} 16. a3 {[%clk 0:02:04]}  e6 {[%clk 0:02:17]} 17. dxe6 {[%clk 0:01:58]}  Rxe6 {[%clk 0:02:18]} 18. Nd5 {[%clk 0:01:40]}  Rae8 {[%clk 0:02:00]} 19. Rxe6 {[%clk 0:01:36]}  Rxe6 {[%clk 0:01:59]} 20. h4 {[%clk 0:01:30]}  Qe8 {[%clk 0:01:53]} 21. Nxc7 {[%clk 0:01:28]}  Re1+ {[%clk 0:01:51]} 22. Rxe1 {[%clk 0:01:21]}  Qxe1+ {[%clk 0:01:52]} 23. Kh2 {[%clk 0:01:20]}  Be5+ {[%clk 0:01:51]} 24. g3 {[%clk 0:01:19]}  Bxc7 {[%clk 0:01:50]} 25. Qxb7 {[%clk 0:01:18]}  Qxf2+ {[%clk 0:01:47]} 26. Kh1 {[%clk 0:01:17]}  Qxg3 {[%clk 0:01:46]} 0-1


[Site "https://www.chess.com"]

[Event "Titled Tuesday Blitz December 13 Early 2022"]
[White "Averjanov, Alexey"]
[Black "Gonzalez, Francisco Silva"]
[WhiteFideId "14109867"]
[BlackFideId "1512285"]
[WhiteElo "2629"]
[BlackElo "2220"]
[Result "1-0"]
[Round "07"]
[TimeControl "180+1"]
[Date "2022.12.14"]
[WhiteClock "0:01:05"]
[BlackClock "0:00:16"]

1. d4 {[%clk 0:03:00]}  Nf6 {[%clk 0:02:16]} 2. c4 {[%clk 0:03:00]}  e6 {[%clk 0:02:15]} 3. Nf3 {[%clk 0:02:59]}  d5 {[%clk 0:02:14]} 4. e3 {[%clk 0:02:59]}  a6 {[%clk 0:02:13]} 5. Nbd2 {[%clk 0:02:59]}  c5 {[%clk 0:02:12]} 6. dxc5 {[%clk 0:02:59]}  Bxc5 {[%clk 0:02:11]} 7. a3 {[%clk 0:02:59]}  dxc4 {[%clk 0:02:11]} 8. Bxc4 {[%clk 0:02:59]}  b5 {[%clk 0:02:10]} 9. Be2 {[%clk 0:02:59]}  Bb7 {[%clk 0:02:10]} 10. b4 {[%clk 0:03:00]}  Bb6 {[%clk 0:02:06]} 11. Bb2 {[%clk 0:03:00]}  Nbd7 {[%clk 0:02:07]} 12. O-O {[%clk 0:02:59]}  Qe7 {[%clk 0:02:06]} 13. Rc1 {[%clk 0:02:57]}  O-O {[%clk 0:02:05]} 14. Nd4 {[%clk 0:02:52]}  Qd6 {[%clk 0:02:03]} 15. Qc2 {[%clk 0:02:48]}  Rac8 {[%clk 0:02:01]} 16. Qb1 {[%clk 0:02:47]}  Bc7 {[%clk 0:01:58]} 17. g3 {[%clk 0:02:40]}  Ne5 {[%clk 0:01:53]} 18. Rfd1 {[%clk 0:02:33]}  Bb6 {[%clk 0:01:51]} 19. N2f3 {[%clk 0:02:28]}  Rxc1 {[%clk 0:01:47]} 20. Qxc1 {[%clk 0:02:24]}  Rc8 {[%clk 0:01:44]} 21. Qa1 {[%clk 0:02:15]}  Bxd4 {[%clk 0:01:43]} 22. Nxd4 {[%clk 0:02:09]}  Qd5 {[%clk 0:01:39]} 23. f3 {[%clk 0:02:06]}  Nc4 {[%clk 0:01:32]} 24. Kf2 {[%clk 0:01:58]}  Qh5 {[%clk 0:01:26]} 25. h4 {[%clk 0:01:57]}  Nxb2 {[%clk 0:01:12]} 26. Qxb2 {[%clk 0:01:58]}  Nd5 {[%clk 0:01:11]} 27. Rc1 {[%clk 0:01:55]}  Rd8 {[%clk 0:01:03]} 28. e4 {[%clk 0:01:50]}  Nf6 {[%clk 0:00:58]} 29. Rc7 {[%clk 0:01:48]}  Ba8 {[%clk 0:00:52]} 30. Qc3 {[%clk 0:01:38]}  Qe5 {[%clk 0:00:50]} 31. Rc8 {[%clk 0:01:38]}  Qd6 {[%clk 0:00:47]} 32. e5 {[%clk 0:01:31]}  Qf8 {[%clk 0:00:41]} 33. Rxd8 {[%clk 0:01:29]}  Qxd8 {[%clk 0:00:39]} 34. exf6 {[%clk 0:01:29]}  gxf6 {[%clk 0:00:39]} 35. Qc5 {[%clk 0:01:23]}  e5 {[%clk 0:00:39]} 36. Nf5 {[%clk 0:01:21]}  h5 {[%clk 0:00:21]} 37. Qe7 {[%clk 0:01:10]}  Qb8 {[%clk 0:00:17]} 38. Qxf6 {[%clk 0:01:07]}  Qa7+ {[%clk 0:00:17]} 39. Kg2 {[%clk 0:01:06]}  Kf8 {[%clk 0:00:16]} 40. Qd8# {[%clk 0:01:05]} 1-0


[Site "https://www.chess.com"]

[Event "Titled Tuesday Blitz December 13 Early 2022"]
[White "Avinash, Ramesh"]
[Black "Matinian, Nikita"]
[WhiteFideId "45018340"]
[BlackFideId "24129100"]
[WhiteElo "2264"]
[BlackElo "2422"]
[Result "1-0"]
[Round "07"]
[TimeControl "180+1"]
[Date "2022.12.13"]
[WhiteClock "0:01:06"]
[BlackClock "0:00:05"]

1. e4 {[%clk 0:03:00]}  c5 {[%clk 0:02:59]} 2. Nf3 {[%clk 0:02:59]}  Nc6 {[%clk 0:02:59]} 3. d4 {[%clk 0:02:59]}  cxd4 {[%clk 0:03:00]} 4. Nxd4 {[%clk 0:03:00]}  Nf6 {[%clk 0:03:01]} 5. Nc3 {[%clk 0:03:00]}  e5 {[%clk 0:03:01]} 6. Ndb5 {[%clk 0:03:01]}  d6 {[%clk 0:03:02]} 7. Bg5 {[%clk 0:03:01]}  a6 {[%clk 0:03:02]} 8. Na3 {[%clk 0:03:01]}  b5 {[%clk 0:03:03]} 9. Nd5 {[%clk 0:03:01]}  Be7 {[%clk 0:03:02]} 10. Bxf6 {[%clk 0:03:02]}  Bxf6 {[%clk 0:03:02]} 11. c3 {[%clk 0:03:02]}  Rb8 {[%clk 0:03:02]} 12. Nc2 {[%clk 0:03:01]}  Bg5 {[%clk 0:03:02]} 13. Be2 {[%clk 0:02:56]}  O-O {[%clk 0:03:01]} 14. O-O {[%clk 0:02:54]}  g6 {[%clk 0:02:59]} 15. Ncb4 {[%clk 0:02:52]}  Nxb4 {[%clk 0:02:53]} 16. Nxb4 {[%clk 0:02:52]}  Bb7 {[%clk 0:02:37]} 17. Nd5 {[%clk 0:02:37]}  Kg7 {[%clk 0:02:35]} 18. a4 {[%clk 0:02:36]}  f5 {[%clk 0:02:29]} 19. axb5 {[%clk 0:02:33]}  axb5 {[%clk 0:02:27]} 20. exf5 {[%clk 0:02:27]}  Rxf5 {[%clk 0:02:21]} 21. Bf3 {[%clk 0:02:26]}  h5 {[%clk 0:02:01]} 22. Be4 {[%clk 0:02:26]}  Rf7 {[%clk 0:01:56]} 23. f3 {[%clk 0:02:11]}  h4 {[%clk 0:01:52]} 24. Qd3 {[%clk 0:02:05]}  Qc8 {[%clk 0:01:44]} 25. Rad1 {[%clk 0:01:59]}  Qc5+ {[%clk 0:01:34]} 26. Kh1 {[%clk 0:01:58]}  h3 {[%clk 0:01:32]} 27. g3 {[%clk 0:01:53]}  Qc4 {[%clk 0:01:06]} 28. Qc2 {[%clk 0:01:48]}  Rbf8 {[%clk 0:01:02]} 29. b3 {[%clk 0:01:44]}  Qc5 {[%clk 0:00:55]} 30. Qe2 {[%clk 0:01:43]}  Bd8 {[%clk 0:00:48]} 31. b4 {[%clk 0:01:38]}  Qc4 {[%clk 0:00:37]} 32. Qxc4 {[%clk 0:01:38]}  bxc4 {[%clk 0:00:38]} 33. Ra1 {[%clk 0:01:33]}  g5 {[%clk 0:00:38]} 34. g4 {[%clk 0:01:34]}  Bxd5 {[%clk 0:00:08]} 35. Bxd5 {[%clk 0:01:33]}  Rc7 {[%clk 0:00:08]} 36. Kg1 {[%clk 0:01:22]}  Rc8 {[%clk 0:00:05]} 37. Kf2 {[%clk 0:01:21]}  Bb6+ {[%clk 0:00:04]} 38. Ke2 {[%clk 0:01:21]}  Rc7 {[%clk 0:00:05]} 39. Rfd1 {[%clk 0:01:07]}  Ra8 {[%clk 0:00:05]} 40. Rxa8 {[%clk 0:01:06]} 1-0


[Site "https://www.chess.com"]

[Event "Titled Tuesday Blitz December 13 Early 2022"]
[White "Babazada, Khazar"]
[Black "Maghsoodloo, Parham"]
[WhiteFideId "13413554"]
[BlackFideId "12539929"]
[WhiteElo "2359"]
[BlackElo "2672"]
[Result "1/2-1/2"]
[Round "07"]
[TimeControl "180+1"]
[Date "2022.12.13"]
[WhiteClock "0:00:05"]
[BlackClock "0:00:03"]

1. e4 {[%clk 0:03:00]}  c5 {[%clk 0:03:00]} 2. Nf3 {[%clk 0:03:01]}  e6 {[%clk 0:02:59]} 3. c3 {[%clk 0:02:59]}  Nf6 {[%clk 0:02:59]} 4. e5 {[%clk 0:02:57]}  Nd5 {[%clk 0:02:59]} 5. d4 {[%clk 0:02:58]}  cxd4 {[%clk 0:02:58]} 6. cxd4 {[%clk 0:02:59]}  d6 {[%clk 0:02:59]} 7. exd6 {[%clk 0:02:49]}  Bxd6 {[%clk 0:02:59]} 8. Nc3 {[%clk 0:02:50]}  Nxc3 {[%clk 0:02:55]} 9. bxc3 {[%clk 0:02:51]}  O-O {[%clk 0:02:55]} 10. Bd3 {[%clk 0:02:51]}  Nd7 {[%clk 0:02:55]} 11. O-O {[%clk 0:02:38]}  Nf6 {[%clk 0:02:54]} 12. Bg5 {[%clk 0:02:37]}  h6 {[%clk 0:02:54]} 13. Bh4 {[%clk 0:02:37]}  b6 {[%clk 0:02:55]} 14. Qe2 {[%clk 0:02:27]}  Bb7 {[%clk 0:02:55]} 15. Nd2 {[%clk 0:02:27]}  Rc8 {[%clk 0:02:52]} 16. Rac1 {[%clk 0:02:27]}  Bf4 {[%clk 0:02:48]} 17. Rc2 {[%clk 0:02:01]}  Bg5 {[%clk 0:02:35]} 18. Bxg5 {[%clk 0:01:52]}  hxg5 {[%clk 0:02:35]} 19. Nf3 {[%clk 0:01:36]}  Bxf3 {[%clk 0:02:31]} 20. Qxf3 {[%clk 0:01:37]}  Qd6 {[%clk 0:02:32]} 21. Re1 {[%clk 0:01:36]}  Qf4 {[%clk 0:02:17]} 22. Qd1 {[%clk 0:01:25]}  Nd5 {[%clk 0:02:11]} 23. g3 {[%clk 0:00:53]}  Qf6 {[%clk 0:02:10]} 24. Qa1 {[%clk 0:00:50]}  Rc7 {[%clk 0:02:04]} 25. Be4 {[%clk 0:00:46]}  Rd8 {[%clk 0:02:03]} 26. Qb2 {[%clk 0:00:34]}  g6 {[%clk 0:01:59]} 27. Kg2 {[%clk 0:00:28]}  Kg7 {[%clk 0:01:59]} 28. Bf3 {[%clk 0:00:27]}  Ne7 {[%clk 0:01:51]} 29. a4 {[%clk 0:00:27]}  Nf5 {[%clk 0:01:49]} 30. a5 {[%clk 0:00:28]}  Rdc8 {[%clk 0:01:43]} 31. axb6 {[%clk 0:00:27]}  axb6 {[%clk 0:01:44]} 32. Rcc1 {[%clk 0:00:25]}  b5 {[%clk 0:01:37]} 33. d5 {[%clk 0:00:22]}  Rxc3 {[%clk 0:01:19]} 34. Rxc3 {[%clk 0:00:21]}  Rxc3 {[%clk 0:01:20]} 35. dxe6 {[%clk 0:00:16]}  g4 {[%clk 0:01:20]} 36. Bxg4 {[%clk 0:00:05]}  Rxg3+ {[%clk 0:01:20]} 37. hxg3 {[%clk 0:00:05]}  Qxb2 {[%clk 0:01:20]} 38. Bxf5 {[%clk 0:00:06]}  fxe6 {[%clk 0:01:21]} 39. Bxe6 {[%clk 0:00:05]}  Kf6 {[%clk 0:00:53]} 40. Re3 {[%clk 0:00:06]}  Ke7 {[%clk 0:00:54]} 41. Bb3+ {[%clk 0:00:04]}  Kd6 {[%clk 0:00:53]} 42. Bf7 {[%clk 0:00:04]}  g5 {[%clk 0:00:53]} 43. Bb3 {[%clk 0:00:05]}  Kc5 {[%clk 0:00:50]} 44. Kg1 {[%clk 0:00:05]}  Kb4 {[%clk 0:00:49]} 45. Be6 {[%clk 0:00:06]}  Ka4 {[%clk 0:00:47]} 46. Kg2 {[%clk 0:00:06]}  b4 {[%clk 0:00:47]} 47. Bd7+ {[%clk 0:00:06]}  Ka5 {[%clk 0:00:46]} 48. Be6 {[%clk 0:00:07]}  Qd4 {[%clk 0:00:46]} 49. Kg1 {[%clk 0:00:07]}  Ka4 {[%clk 0:00:43]} 50. Bb3+ {[%clk 0:00:07]}  Ka3 {[%clk 0:00:44]} 51. Be6+ {[%clk 0:00:06]}  Kb2 {[%clk 0:00:43]} 52. Kg2 {[%clk 0:00:07]}  Kc2 {[%clk 0:00:42]} 53. Bb3+ {[%clk 0:00:07]}  Kd2 {[%clk 0:00:42]} 54. Be6 {[%clk 0:00:07]}  g4 {[%clk 0:00:40]} 55. Bb3 {[%clk 0:00:07]}  Qd6 {[%clk 0:00:37]} 56. Kg1 {[%clk 0:00:06]}  Qc6 {[%clk 0:00:32]} 57. Be6 {[%clk 0:00:05]}  Kc2 {[%clk 0:00:18]} 58. Bb3+ {[%clk 0:00:04]}  Kb2 {[%clk 0:00:17]} 59. Be6 {[%clk 0:00:05]}  Qc1+ {[%clk 0:00:17]} 60. Kg2 {[%clk 0:00:05]}  Qd1 {[%clk 0:00:18]} 61. Bf7 {[%clk 0:00:03]}  Qd7 {[%clk 0:00:10]} 62. Be6 {[%clk 0:00:04]}  Qc6+ {[%clk 0:00:10]} 63. Kg1 {[%clk 0:00:05]}  Kc2 {[%clk 0:00:06]} 64. Bf7 {[%clk 0:00:05]}  Kd2 {[%clk 0:00:05]} 65. Bb3 {[%clk 0:00:06]}  Qc1+ {[%clk 0:00:04]} 66. Kg2 {[%clk 0:00:06]}  Qc6+ {[%clk 0:00:05]} 67. Kg1 {[%clk 0:00:06]}  Qf6 {[%clk 0:00:03]} 68. Kg2 {[%clk 0:00:07]}  Qf5 {[%clk 0:00:02]} 69. Kg1 {[%clk 0:00:05]}  Qf6 {[%clk 0:00:01]} 70. Bd5 {[%clk 0:00:05]}  Qd4 {[%clk 0:00:01]} 71. Be6 {[%clk 0:00:05]}  Qc5 {[%clk 0:00:02]} 72. Kg2 {[%clk 0:00:05]}  Kc2 {[%clk 0:00:02]} 73. Bb3+ {[%clk 0:00:04]}  Kb2 {[%clk 0:00:02]} 74. Be6 {[%clk 0:00:04]}  Qc6+ {[%clk 0:00:03]} 75. Kg1 {[%clk 0:00:05]} 1/2-1/2


[Site "https://www.chess.com"]

[Event "Titled Tuesday Blitz December 13 Early 2022"]
[White "Barria Zuniga, Daniel"]
[Black "Steinberg, Nitzan"]
[WhiteFideId "3400816"]
[BlackFideId "2801795"]
[WhiteElo "2414"]
[BlackElo "2491"]
[Result "0-1"]
[Round "07"]
[TimeControl "180+1"]
[Date "2022.12.13"]
[WhiteClock "0:00:12"]
[BlackClock "0:00:03"]

1. d4 {[%clk 0:03:00]}  Nf6 {[%clk 0:02:55]} 2. c4 {[%clk 0:03:00]}  g6 {[%clk 0:02:52]} 3. Nc3 {[%clk 0:02:58]}  Bg7 {[%clk 0:02:49]} 4. e4 {[%clk 0:02:58]}  d6 {[%clk 0:02:49]} 5. Be2 {[%clk 0:02:58]}  O-O {[%clk 0:02:49]} 6. Nf3 {[%clk 0:02:58]}  e5 {[%clk 0:02:47]} 7. d5 {[%clk 0:02:59]}  a5 {[%clk 0:02:47]} 8. Bg5 {[%clk 0:02:59]}  Na6 {[%clk 0:02:46]} 9. Nd2 {[%clk 0:02:58]}  Qe8 {[%clk 0:02:38]} 10. O-O {[%clk 0:02:56]}  h6 {[%clk 0:02:31]} 11. Bh4 {[%clk 0:02:54]}  Nh7 {[%clk 0:02:31]} 12. a3 {[%clk 0:02:52]}  f5 {[%clk 0:02:31]} 13. f3 {[%clk 0:02:51]}  f4 {[%clk 0:02:27]} 14. b4 {[%clk 0:02:48]}  g5 {[%clk 0:02:25]} 15. Bf2 {[%clk 0:02:47]}  h5 {[%clk 0:02:16]} 16. c5 {[%clk 0:02:46]}  Qg6 {[%clk 0:02:13]} 17. c6 {[%clk 0:02:31]}  b6 {[%clk 0:01:48]} 18. Bxa6 {[%clk 0:02:15]}  Bxa6 {[%clk 0:01:47]} 19. b5 {[%clk 0:02:15]}  Bc8 {[%clk 0:01:47]} 20. Nc4 {[%clk 0:02:14]}  g4 {[%clk 0:01:45]} 21. Bxb6 {[%clk 0:01:47]}  cxb6 {[%clk 0:01:39]} 22. Nxb6 {[%clk 0:01:47]}  Rb8 {[%clk 0:01:36]} 23. Nxc8 {[%clk 0:01:47]}  Rfxc8 {[%clk 0:01:37]} 24. Rb1 {[%clk 0:01:47]}  gxf3 {[%clk 0:01:29]} 25. Qxf3 {[%clk 0:01:43]}  Ng5 {[%clk 0:01:29]} 26. Qd3 {[%clk 0:01:33]}  f3 {[%clk 0:01:24]} 27. Qc2 {[%clk 0:00:58]}  Rb6 {[%clk 0:00:22]} 28. Na4 {[%clk 0:00:52]}  Rf8 {[%clk 0:00:10]} 29. Nxb6 {[%clk 0:00:46]}  Nxe4 {[%clk 0:00:10]} 30. Rbe1 {[%clk 0:00:24]}  f2+ {[%clk 0:00:09]} 31. Rxf2 {[%clk 0:00:24]}  Rxf2 {[%clk 0:00:04]} 32. Qxe4 {[%clk 0:00:24]}  Qf7 {[%clk 0:00:03]} 33. Nc4 {[%clk 0:00:21]}  Ra2 {[%clk 0:00:03]} 34. Rf1 {[%clk 0:00:17]}  Qa7+ {[%clk 0:00:02]} 35. b6 {[%clk 0:00:18]}  Qa6 {[%clk 0:00:03]} 36. b7 {[%clk 0:00:15]}  Qa7+ {[%clk 0:00:03]} 37. Kh1 {[%clk 0:00:14]}  Qf2 {[%clk 0:00:03]} 38. Qe1 {[%clk 0:00:12]}  Qxg2# {[%clk 0:00:03]} 0-1


[Site "https://www.chess.com"]

[Event "Titled Tuesday Blitz December 13 Early 2022"]
[White "Begunov, Konstantin"]
[Black "Kriti Mayur Patel"]
[WhiteFideId "4118510"]
[BlackFideId "35061780"]
[WhiteElo "2141"]
[BlackElo "1306"]
[Result "1-0"]
[Round "07"]
[TimeControl "180+1"]
[Date "2022.12.14"]
[WhiteClock "0:01:32"]
[BlackClock "0:00:19"]

1. d4 {[%clk 0:03:00]}  d5 {[%clk 0:02:59]} 2. c4 {[%clk 0:03:00]}  e6 {[%clk 0:02:59]} 3. Nc3 {[%clk 0:03:01]}  Nf6 {[%clk 0:03:00]} 4. Bg5 {[%clk 0:03:01]}  Be7 {[%clk 0:03:01]} 5. cxd5 {[%clk 0:03:01]}  exd5 {[%clk 0:03:00]} 6. e3 {[%clk 0:03:01]}  c6 {[%clk 0:03:01]} 7. Bd3 {[%clk 0:03:01]}  Be6 {[%clk 0:03:01]} 8. Qc2 {[%clk 0:03:01]}  Nbd7 {[%clk 0:02:58]} 9. Nf3 {[%clk 0:03:01]}  O-O {[%clk 0:02:58]} 10. O-O {[%clk 0:03:00]}  Re8 {[%clk 0:02:59]} 11. Rab1 {[%clk 0:03:00]}  Nf8 {[%clk 0:02:59]} 12. b4 {[%clk 0:03:01]}  Rc8 {[%clk 0:03:00]} 13. Na4 {[%clk 0:03:00]}  b5 {[%clk 0:02:56]} 14. Nc5 {[%clk 0:02:55]}  Bg4 {[%clk 0:02:52]} 15. Ne5 {[%clk 0:02:51]}  Bh5 {[%clk 0:02:42]} 16. Bf5 {[%clk 0:02:32]}  Rb8 {[%clk 0:02:20]} 17. Nxc6 {[%clk 0:02:30]}  Qc7 {[%clk 0:02:14]} 18. Nxb8 {[%clk 0:02:27]}  Rxb8 {[%clk 0:02:13]} 19. Bf4 {[%clk 0:02:18]}  Bd6 {[%clk 0:02:10]} 20. Bxd6 {[%clk 0:02:18]}  Qxd6 {[%clk 0:02:10]} 21. Nd3 {[%clk 0:02:11]}  Ng6 {[%clk 0:02:00]} 22. Qc5 {[%clk 0:02:07]}  Qd8 {[%clk 0:01:52]} 23. Rfc1 {[%clk 0:02:07]}  Nh4 {[%clk 0:01:43]} 24. Bh3 {[%clk 0:02:01]}  Ne4 {[%clk 0:01:40]} 25. Qxa7 {[%clk 0:01:53]}  Ra8 {[%clk 0:01:26]} 26. Qb7 {[%clk 0:01:52]}  Rb8 {[%clk 0:01:23]} 27. Qc7 {[%clk 0:01:52]}  Qe8 {[%clk 0:01:14]} 28. Nf4 {[%clk 0:01:47]}  Bg6 {[%clk 0:01:08]} 29. Nxd5 {[%clk 0:01:46]}  Ra8 {[%clk 0:00:57]} 30. Qe5 {[%clk 0:01:30]}  Qxe5 {[%clk 0:00:28]} 31. dxe5 {[%clk 0:01:30]}  Ng5 {[%clk 0:00:27]} 32. Ne7+ {[%clk 0:01:29]}  Kf8 {[%clk 0:00:25]} 33. Nxg6+ {[%clk 0:01:30]}  Nxg6 {[%clk 0:00:25]} 34. Rc8+ {[%clk 0:01:27]}  Rxc8 {[%clk 0:00:24]} 35. Bxc8 {[%clk 0:01:28]}  Ke7 {[%clk 0:00:23]} 36. Ba6 {[%clk 0:01:27]}  Ne4 {[%clk 0:00:18]} 37. f4 {[%clk 0:01:24]}  f6 {[%clk 0:00:16]} 38. exf6+ {[%clk 0:01:23]}  Kxf6 {[%clk 0:00:16]} 39. Rb3 {[%clk 0:01:24]}  Nd6 {[%clk 0:00:15]} 40. Rd3 {[%clk 0:01:23]}  Ke6 {[%clk 0:00:15]} 41. Rxd6+ {[%clk 0:01:23]}  Kxd6 {[%clk 0:00:15]} 42. Bxb5 {[%clk 0:01:24]}  Kc7 {[%clk 0:00:15]} 43. a4 {[%clk 0:01:24]}  Kb6 {[%clk 0:00:16]} 44. Bd3 {[%clk 0:01:24]}  Ne7 {[%clk 0:00:17]} 45. a5+ {[%clk 0:01:25]}  Kb7 {[%clk 0:00:16]} 46. e4 {[%clk 0:01:26]}  Nc6 {[%clk 0:00:16]} 47. e5 {[%clk 0:01:23]}  Nxb4 {[%clk 0:00:16]} 48. Bxh7 {[%clk 0:01:23]}  Nc6 {[%clk 0:00:16]} 49. Be4 {[%clk 0:01:20]}  Ka6 {[%clk 0:00:12]} 50. Bxc6 {[%clk 0:01:21]}  Kxa5 {[%clk 0:00:13]} 51. e6 {[%clk 0:01:21]}  Kb6 {[%clk 0:00:14]} 52. e7 {[%clk 0:01:22]}  Kxc6 {[%clk 0:00:13]} 53. e8=Q+ {[%clk 0:01:23]}  Kd6 {[%clk 0:00:14]} 54. Qg6+ {[%clk 0:01:24]}  Kd5 {[%clk 0:00:15]} 55. Qxg7 {[%clk 0:01:25]}  Ke4 {[%clk 0:00:15]} 56. Qe5+ {[%clk 0:01:26]}  Kd3 {[%clk 0:00:15]} 57. f5 {[%clk 0:01:26]}  Kc2 {[%clk 0:00:16]} 58. f6 {[%clk 0:01:27]}  Kc1 {[%clk 0:00:16]} 59. f7 {[%clk 0:01:28]}  Kb1 {[%clk 0:00:17]} 60. f8=Q {[%clk 0:01:29]}  Ka2 {[%clk 0:00:18]} 61. Qfd6 {[%clk 0:01:30]}  Kb1 {[%clk 0:00:18]} 62. Qec5 {[%clk 0:01:31]}  Ka2 {[%clk 0:00:18]} 63. Qa6+ {[%clk 0:01:31]}  Kb3 {[%clk 0:00:19]} 64. Qab6+ {[%clk 0:01:32]}  Ka2 {[%clk 0:00:19]} 65. Qca5# {[%clk 0:01:32]} 1-0


[Site "https://www.chess.com"]

[Event "Titled Tuesday Blitz December 13 Early 2022"]
[White "Bethke, Richard"]
[Black "Chernov, Mikhail"]
[WhiteFideId "12959243"]
[BlackFideId "24143170"]
[WhiteElo "2369"]
[BlackElo "2113"]
[Result "1-0"]
[Round "07"]
[TimeControl "180+1"]
[Date "2022.12.14"]
[WhiteClock "0:01:14"]
[BlackClock "0:00:31"]

1. e4 {[%clk 0:02:31]}  c5 {[%clk 0:02:55]} 2. Nf3 {[%clk 0:02:30]}  Nc6 {[%clk 0:02:56]} 3. d4 {[%clk 0:02:30]}  cxd4 {[%clk 0:02:56]} 4. Nxd4 {[%clk 0:02:31]}  Nf6 {[%clk 0:02:57]} 5. Nc3 {[%clk 0:02:31]}  d6 {[%clk 0:02:57]} 6. Be3 {[%clk 0:02:29]}  Ng4 {[%clk 0:02:57]} 7. Bg5 {[%clk 0:02:27]}  h6 {[%clk 0:02:57]} 8. Bh4 {[%clk 0:02:28]}  g5 {[%clk 0:02:57]} 9. Bg3 {[%clk 0:02:28]}  Bg7 {[%clk 0:02:58]} 10. Nb3 {[%clk 0:02:21]}  Bxc3+ {[%clk 0:02:46]} 11. bxc3 {[%clk 0:02:20]}  Qc7 {[%clk 0:02:47]} 12. h4 {[%clk 0:02:13]}  Rg8 {[%clk 0:02:12]} 13. hxg5 {[%clk 0:02:11]}  hxg5 {[%clk 0:02:13]} 14. Qd2 {[%clk 0:02:03]}  Nf6 {[%clk 0:02:02]} 15. Bd3 {[%clk 0:01:57]}  Be6 {[%clk 0:01:55]} 16. Nd4 {[%clk 0:01:52]}  O-O-O {[%clk 0:01:53]} 17. a4 {[%clk 0:01:40]}  Kb8 {[%clk 0:01:46]} 18. a5 {[%clk 0:01:28]}  Nxa5 {[%clk 0:01:16]} 19. e5 {[%clk 0:01:27]}  dxe5 {[%clk 0:01:07]} 20. Nb5 {[%clk 0:01:26]}  Qb6 {[%clk 0:00:38]} 21. Bxe5+ {[%clk 0:01:24]}  Kc8 {[%clk 0:00:38]} 22. Qe2 {[%clk 0:01:16]}  Nd5 {[%clk 0:00:31]} 23. Bd4 {[%clk 0:01:14]} 1-0


[Site "https://www.chess.com"]